[Event "POL-chT 2nd League Juniors 2020"]
[Site "Sypniewo"]
[Date "2020.10.24"]
[Round "3.9"]
[White "Nowak, Filip"]
[Black "Bochenek, Ryszard"]
[Result "1/2-1/2"]
[ECO "B32"]
[WhiteElo "1871"]
[BlackElo "1445"]
[Annotator "NA RC"]
[PlyCount "130"]
[EventDate "2020.10.23"]
[EventType "team-tourn"]
[EventCountry "POL"]
[SourceTitle "playchess.com"]
[Source "ChessBase"]
[SourceQuality "1"]
[TimeControl "5400+30"]

{[%evp 8,109,26,29,26,25,20,19,25,31,20,25,25,32767,55,35,48,33,45,38,50,62,32767,3,69,32767,71,72,39,68,128,121,172,104,179,110,254,260,268,-42,0,0,0,32767,-208,-326,-409,-980,-1006,-949,32767,32767,32767,32767,-218,-237,-211,-221,-182,-182,-154,-150,-150,-118,-118,-206,-229,-189,-204,32767,32767,32767,-194,32767,32767,32767,32767,-296,-349,32767,-316,32767,32767,32767,-167,32767,32767,-170,-86,-121,-131,-103,-153,-369,-185,-196,-245,-359,-303,-139,32767,-139,-154,-149]} 1. e4 {[%emt 0:00:00]} c5 {[%emt 0:00:00]} 2. Nf3 {[%emt 0:00:00]} Nc6 {[%emt 0:00:00]} 3. d4 {[%emt 0:00:00]} cxd4 {[%emt 0:00:00]} 4. Nxd4 {[%emt 0:00:00]} e5 {[%emt 0:00:07]} 5. Nb5 {[%emt 0:00:12]} d6 {[%emt 0:00:06]} 6. N1c3 {[%emt 0:00:17]} a6 {[%emt 0:00:11]} 7. Na3 {[%emt 0:00:09]} Be7 {[%emt 0:00:24]} 8. Nc4 {[%emt 0:00:07]} b5 {[%emt 0:00:22] B32: Sicilian: Löwenthal and Kalashnikov Variations.} 9. Ne3 $1 {[%emt 0:00:09]} Nf6 {[%emt 0:00:59]} 10. g3 {[%emt 0:00:35]} O-O {[%emt 0:00:57]} 11. Bg2 {[%emt 0:00:11]} Be6 {[%emt 0:00:34]} 12. O-O {[%emt 0:00:18]} Qd7 {[%emt 0:04:52]} 13. Ncd5 {[%emt 0:13:06] [#]} Bxd5 $146 {[%emt 0:04:28]} ({Predecessor:} 13... Bd8 14. c3 Bxd5 15. Nxd5 Nxd5 16. Qxd5 Bb6 17. Kh1 Ne7 18. Qd3 Rac8 19. f4 Rfd8 20. fxe5 {1-0 (42) Psyk,R (2304)-Vanduyfhuys,D (1878) Polanica Zdroj 2018}) 14. exd5 {[%emt 0:00:19]} Na5 {[%emt 0:03:02]} 15. f4 {[%emt 0:10:28]} (15. b3 $14) 15... Rac8 {[%emt 0:05:09]} (15... Nc4 $1 $11) 16. b3 {[%emt 0:01:34]} Nb7 {[%emt 0:03:07]} 17. Bb2 {[%emt 0:00:26]} Rfe8 {[%emt 0:03:55]} 18. Kh1 {[%emt 0:04:40]} Qc7 {[%emt 0:06:01]} 19. g4 {[%emt 0:23:03]} Qc5 {[%emt 0:06:24] [#]} (19... g6 $16) 20. Qd2 {[%emt 0:06:39]} ({Don't do} 20. fxe5 $6 Qxe3 21. exf6 Bxf6 $14) (20. Qf3 $1 $18 e4 21. Qh3) 20... exf4 {[%emt 0:04:04] [#]} (20... Bd8 $16) 21. Rxf4 {[%emt 0:02:32]} (21. Nf5 $1 $18) 21... Bd8 {[%emt 0:01:46]} (21... Nd7 $16 {was worth a try.}) 22. Bd4 {[%emt 0:01:07]} Qc7 {[%emt 0:00:35]} 23. Bxf6 $2 {[%emt 0:03:24]} (23. Raf1 $18 h6 24. h4) 23... Bxf6 {[%emt 0:01:10] [#]} 24. Rxf6 $1 {[%emt 0:00:24]} gxf6 {[%emt 0:00:05]} 25. Nf5 {[%emt 0:00:16] [#]} Qc3 $1 {[%emt 0:01:03]} 26. Qc1 {[%emt 0:05:12]} (26. Qxc3 $142 Rxc3 27. Nd4) 26... Re2 {[%emt 0:01:54]} 27. Rb1 {[%emt 0:02:08]} (27. Qg1 $142 Rce8 28. Rf1 Rxc2 29. h3) 27... Rce8 {[%emt 0:01:26]} 28. Qf4 {[%emt 0:04:43]} Re1+ {[%emt 0:04:04]} 29. Rxe1 {[%emt 0:00:08]} Qxe1+ {[%emt 0:00:15]} 30. Bf1 {[%emt 0:00:06]} Qe4+ {[%emt 0:00:31]} 31. Qxe4 {[%emt 0:00:33]} Rxe4 {[%emt 0:00:05]} 32. h3 {[%emt 0:00:21]} Re5 {[%emt 0:00:22]} 33. Kg2 {[%emt 0:00:09]} Kf8 {[%emt 0:00:30]} 34. c4 {[%emt 0:00:12]} bxc4 {[%emt 0:00:36]} 35. Bxc4 {[%emt 0:00:05]} a5 {[%emt 0:01:03]} 36. Ba6 {[%emt 0:01:00]} (36. Kf2 $17) 36... Nc5 {[%emt 0:00:40]} 37. Bc4 {[%emt 0:00:34]} Ne4 {[%emt 0:01:46]} 38. Nd4 {[%emt 0:03:16]} Nc3 {[%emt 0:01:34]} 39. Nc6 {[%emt 0:00:36]} Re1 {[%emt 0:00:59]} ({Don't do} 39... Nxd5 40. Nxe5 Nf4+ 41. Kf3) 40. a4 {[%emt 0:00:28]} Rd1 {[%emt 0:00:14]} 41. Nxa5 {[%emt 0:01:15]} Nxd5 {[%emt 0:00:09]} 42. Kf3 {[%emt 0:00:20]} Nb4 {[%emt 0:00:14]} 43. Nb7 {[%emt 0:01:16]} d5 {[%emt 0:00:36]} 44. Bb5 {[%emt 0:00:26]} d4 {[%emt 0:01:02]} 45. Nc5 {[%emt 0:00:16]} d3 {[%emt 0:01:09]} 46. a5 {[%emt 0:00:35]} Ra1 {[%emt 0:01:55]} 47. Nxd3 {[%emt 0:01:31]} Nxd3 {[%emt 0:00:22]} (47... Rxa5 $19 48. Bc4 Nxd3 49. Bxd3 h5 50. gxh5 Rxh5) 48. Bxd3 {[%emt 0:00:08]} Rxa5 {[%emt 0:00:03]} 49. Bxh7 {[%emt 0:00:20]} Rb5 {[%emt 0:00:34]} 50. Kf4 $2 {[%emt 0:02:52]} (50. Bc2 $17) 50... Rxb3 {[%emt 0:01:08]} 51. h4 {[%emt 0:00:07]} Rh3 {[%emt 0:01:28]} (51... Kg7 $142 52. Be4 Rh3) 52. h5 {[%emt 0:00:08]} Kg7 {[%emt 0:00:10]} 53. Bf5 {[%emt 0:00:35]} Rb3 {[%emt 0:01:15]} 54. Be4 {[%emt 0:01:11]} Rb4 {[%emt 0:00:23]} 55. Kf5 $17 {[%emt 0:00:23]} Rb5+ {[%emt 0:00:32]} 56. Kf4 {[%emt 0:00:03]} Kh6 {[%emt 0:00:46]} 57. Bf5 {[%emt 0:00:11]} Rb4+ {[%emt 0:00:07]} 58. Be4 {[%emt 0:00:05]} Rxe4+ {[%emt 0:01:50]} 59. Kxe4 {[%emt 0:00:02]} Kg5 {[%emt 0:00:07]} 60. Kd5 {[%emt 0:02:20]} f5 {[%emt 0:01:02]} 61. h6 {[%emt 0:03:13]} Kxh6 {[%emt 0:00:23]} 62. gxf5 {[%emt 0:00:06]} Kg5 {[%emt 0:01:28]} 63. Ke5 {[%emt 0:00:31]} Kg4 {[%emt 0:01:48]} 64. Kf6 {[%emt 0:01:18]} Kf4 {[%emt 0:00:05]} 65. Kxf7 {[%emt 0:00:18]} Kxf5 {[%emt 0:00:02]} 1/2-1/2

[Event "POL-chT 2nd League Juniors 2020"]
[Site "Sypniewo"]
[Date "2020.10.24"]
[Round "3.9"]
[White "Maj, Samuel"]
[Black "Wieckowski, Michal"]
[Result "1/2-1/2"]
[ECO "A83"]
[WhiteElo "1305"]
[BlackElo "1494"]
[Annotator "NA RC"]
[PlyCount "62"]
[EventDate "2020.10.23"]
[EventType "team-tourn"]
[EventCountry "POL"]
[SourceTitle "playchess.com"]
[Source "ChessBase"]
[SourceQuality "1"]
[TimeControl "5400+30"]

1. d4 {[%emt 0:00:00]} f5 {[%emt 0:00:00]} 2. e4 {[%emt 0:00:00]} fxe4 {[%emt 0:00:07]} 3. Nc3 {[%emt 0:00:00]} Nf6 {[%emt 0:02:43]} 4. Bg5 {[%emt 0:00:00]} g6 {[%emt 0:08:22]} 5. f3 {[%emt 0:00:16]} d5 {[%emt 0:07:19]} 6. fxe4 {[%emt 0:00:49]} dxe4 {[%emt 0:07:03]} 7. Bc4 {[%emt 0:01:08]} Nc6 {[%emt 0:08:31]} 8. Nge2 {[%emt 0:12:46]} Na5 {[%emt 0:14:10]} 9. Bb3 {[%emt 0:08:49]} Nxb3 {[%emt 0:00:23]} 10. axb3 {[%emt 0:00:23]} Bg7 {[%emt 0:05:11]} 11. O-O {[%emt 0:01:53]} O-O {[%emt 0:01:13]} 12. Qd2 {[%emt 0:03:10]} Bg4 {[%emt 0:05:36]} 13. Rad1 {[%emt 0:06:16]} Qd7 {[%emt 0:02:26]} 14. h3 {[%emt 0:05:26]} Bxe2 {[%emt 0:02:07]} 15. Qxe2 {[%emt 0:00:30]} c6 {[%emt 0:04:11]} 16. Rfe1 {[%emt 0:04:06]} Qf5 {[%emt 0:12:38]} 17. Bxf6 {[%emt 0:16:19]} exf6 {[%emt 0:00:23]} 18. Nxe4 {[%emt 0:01:11]} Rfe8 {[%emt 0:12:59]} 19. Qc4+ {[%emt 0:13:21]} Qd5 {[%emt 0:00:15]} 20. Qxd5+ {[%emt 0:00:42]} cxd5 {[%emt 0:00:01]} 21. Nd6 {[%emt 0:03:06]} Rxe1+ {[%emt 0:01:20]} 22. Rxe1 {[%emt 0:00:02]} b6 {[%emt 0:01:41]} 23. c3 {[%emt 0:12:17]} Kf8 {[%emt 0:00:39]} 24. Nb5 {[%emt 0:00:25]} Kf7 {[%emt 0:01:30]} 25. b4 {[%emt 0:02:41]} Bh6 {[%emt 0:00:24]} 26. Kf2 {[%emt 0:01:27]} Bg5 {[%emt 0:00:34]} 27. Ra1 {[%emt 0:01:47]} Ke7 {[%emt 0:01:00]} 28. Nc7 {[%emt 0:00:46]} Rd8 {[%emt 0:00:32]} 29. Rxa7 {[%emt 0:00:08]} Kd6 {[%emt 0:00:02]} 30. Nb5+ {[%emt 0:01:48]} Kc6 {[%emt 0:00:14]} 31. Na3 {[%emt 0:00:49]} Bc1 {[%emt 0:00:31]} 1/2-1/2

[Event "POL-chT 2nd League Juniors 2020"]
[Site "Sypniewo"]
[Date "2020.10.24"]
[Round "3.10"]
[White "Suszczynski, Dominik"]
[Black "Zimny, Jakub"]
[Result "0-1"]
[ECO "E70"]
[WhiteElo "1241"]
[BlackElo "1569"]
[Annotator "NA RC"]
[PlyCount "68"]
[EventDate "2020.10.23"]
[EventType "team-tourn"]
[EventCountry "POL"]
[SourceTitle "playchess.com"]
[Source "ChessBase"]
[SourceQuality "1"]
[TimeControl "5400+30"]

1. d4 {[%emt 0:00:00]} Nf6 {[%emt 0:00:00]} 2. c4 {[%emt 0:00:30]} g6 {[%emt 0:00:23]} 3. Nc3 {[%emt 0:01:34]} Bg7 {[%emt 0:00:30]} 4. e4 {[%emt 0:02:02]} d6 {[%emt 0:00:12]} 5. Be3 {[%emt 0:03:00]} O-O {[%emt 0:00:27]} 6. f3 {[%emt 0:03:45]} Nbd7 {[%emt 0:03:37]} 7. Bd3 {[%emt 0:06:23]} e5 {[%emt 0:01:38]} 8. d5 {[%emt 0:04:01]} Nh5 {[%emt 0:02:36]} 9. Nge2 {[%emt 0:03:11]} f5 {[%emt 0:03:00]} 10. Qd2 {[%emt 0:03:20]} f4 {[%emt 0:04:48]} 11. Bf2 {[%emt 0:00:52]} a5 {[%emt 0:01:09]} 12. Bc2 b6 {[%emt 0:03:21]} 13. Nb5 {[%emt 0:11:00]} Nc5 {[%emt 0:01:56]} 14. Nec3 {[%emt 0:01:21]} Nf6 {[%emt 0:06:19]} 15. Rb1 {[%emt 0:07:49]} g5 {[%emt 0:03:09]} 16. a3 {[%emt 0:03:18]} g4 {[%emt 0:06:33]} 17. b4 {[%emt 0:02:11]} Ncd7 {[%emt 0:02:13]} 18. Qe2 {[%emt 0:05:25]} gxf3 {[%emt 0:08:57]} 19. gxf3 {[%emt 0:01:58]} Kh8 {[%emt 0:00:54]} 20. Bh4 {[%emt 0:02:15]} Rg8 {[%emt 0:01:22]} 21. Rg1 {[%emt 0:01:37]} Nf8 {[%emt 0:01:24]} 22. Qg2 {[%emt 0:02:51]} Ng6 {[%emt 0:00:29]} 23. Bf2 {[%emt 0:02:52]} Bd7 {[%emt 0:00:49]} 24. Ke2 {[%emt 0:05:05]} axb4 {[%emt 0:03:34]} 25. axb4 {[%emt 0:00:21]} Bxb5 {[%emt 0:01:20]} 26. Nxb5 {[%emt 0:00:07]} Qd7 {[%emt 0:01:09]} 27. Ra1 {[%emt 0:02:14]} c6 {[%emt 0:01:11]} 28. dxc6 {[%emt 0:01:29]} Qxc6 {[%emt 0:00:26]} 29. Bb3 {[%emt 0:03:34]} d5 {[%emt 0:03:59]} 30. exd5 Nxd5 {[%emt 0:00:13]} 31. cxd5 {[%emt 0:02:15]} Qxb5+ {[%emt 0:00:11]} 32. Kd2 {[%emt 0:00:38]} Qxb4+ {[%emt 0:00:19]} 33. Kc2 {[%emt 0:00:09]} Rgc8+ {[%emt 0:00:29]} 34. Kd3 {[%emt 0:02:11]} Qxb3+ 0-1

[Event "POL-chT 2nd League Juniors 2020"]
[Site "Sypniewo"]
[Date "2020.10.24"]
[Round "3.11"]
[White "Jedrzejko, Martyna"]
[Black "Wasala, Wiktoria"]
[Result "1/2-1/2"]
[ECO "B03"]
[WhiteElo "1618"]
[BlackElo "1458"]
[Annotator "NA RC"]
[PlyCount "87"]
[EventDate "2020.10.23"]
[EventType "team-tourn"]
[EventCountry "POL"]
[SourceTitle "playchess.com"]
[Source "ChessBase"]
[SourceQuality "1"]
[TimeControl "5400+30"]

1. e4 {[%emt 0:00:00]} Nf6 {[%emt 0:00:00]} 2. e5 {[%emt 0:00:00]} Nd5 {[%emt 0:00:00]} 3. d4 {[%emt 0:00:21]} d6 {[%emt 0:00:00]} 4. c4 {[%emt 0:00:10]} Nb6 {[%emt 0:00:00]} 5. exd6 {[%emt 0:00:25]} exd6 {[%emt 0:00:00]} 6. Nc3 {[%emt 0:00:28]} Be7 {[%emt 0:00:14]} 7. Be3 {[%emt 0:00:52]} O-O {[%emt 0:01:00]} 8. Bd3 {[%emt 0:01:33]} Nc6 {[%emt 0:01:13]} 9. b3 {[%emt 0:01:40]} Bf6 {[%emt 0:00:42]} 10. Nge2 {[%emt 0:01:04]} Bg5 {[%emt 0:03:37]} 11. O-O {[%emt 0:22:07]} Bg4 {[%emt 0:03:00]} 12. Qd2 {[%emt 0:01:10]} Bf6 {[%emt 0:02:25]} 13. h3 {[%emt 0:02:23]} Bh5 {[%emt 0:01:05]} 14. Rac1 {[%emt 0:03:16]} Bg6 {[%emt 0:00:55]} 15. Bxg6 {[%emt 0:08:08]} hxg6 {[%emt 0:00:08]} 16. Rfe1 {[%emt 0:02:08]} Re8 {[%emt 0:01:40]} 17. Nf4 {[%emt 0:04:53]} Ne7 {[%emt 0:03:02]} 18. Rcd1 {[%emt 0:12:10]} Nf5 {[%emt 0:01:44]} 19. Nfd5 {[%emt 0:01:09]} Nxd5 {[%emt 0:00:48]} 20. Nxd5 {[%emt 0:00:11]} Nxe3 {[%emt 0:00:28]} 21. Nxf6+ {[%emt 0:00:36]} Qxf6 {[%emt 0:00:06]} 22. Rxe3 {[%emt 0:01:04]} Rxe3 {[%emt 0:00:19]} 23. Qxe3 {[%emt 0:00:23]} Qe6 {[%emt 0:00:14]} 24. Qxe6 {[%emt 0:01:08]} fxe6 {[%emt 0:00:05]} 25. f3 {[%emt 0:01:20]} c6 {[%emt 0:01:29]} 26. Kf2 {[%emt 0:01:25]} Kf7 {[%emt 0:00:33]} 27. Re1 {[%emt 0:04:14]} Rc8 {[%emt 0:02:27]} 28. Re2 {[%emt 0:06:32]} b5 {[%emt 0:05:38]} 29. c5 {[%emt 0:02:34]} d5 {[%emt 0:07:35]} 30. b4 {[%emt 0:00:20]} Ra8 {[%emt 0:00:16]} 31. a4 {[%emt 0:02:23]} a6 {[%emt 0:03:24]} 32. a5 {[%emt 0:00:16]} Re8 {[%emt 0:00:23]} 33. Re5 {[%emt 0:00:21]} Rh8 {[%emt 0:00:48]} 34. f4 {[%emt 0:01:32]} Kf6 {[%emt 0:01:11]} 35. Kf3 {[%emt 0:00:32]} Rh4 {[%emt 0:07:41]} 36. Kg3 {[%emt 0:00:29]} Rh5 {[%emt 0:03:17]} 37. Kg4 {[%emt 0:00:50]} Rh8 {[%emt 0:01:40]} 38. h4 {[%emt 0:02:00]} Rh7 {[%emt 0:01:08]} 39. g3 {[%emt 0:02:18]} Rh8 {[%emt 0:00:15]} 40. Kh3 {[%emt 0:07:57]} Rh7 {[%emt 0:00:42]} 41. Kg4 {[%emt 0:05:02]} Rh8 {[%emt 0:00:12]} 42. Kh3 {[%emt 0:00:47]} Rh7 {[%emt 0:02:14]} 43. Kg4 {[%emt 0:00:22]} Rh8 {[%emt 0:00:02]} 44. Kh3 {[%emt 0:00:52]} 1/2-1/2

[Event "POL-chT 2nd League Juniors 2020"]
[Site "Sypniewo"]
[Date "2020.10.24"]
[Round "3.12"]
[White "Pastuszko, Katarzyna"]
[Black "Gornisiewicz, Zuzanna"]
[Result "1-0"]
[ECO "C54"]
[WhiteElo "1251"]
[BlackElo "1023"]
[Annotator "NA"]
[PlyCount "75"]
[EventDate "2020.10.23"]
[EventType "team-tourn"]
[EventCountry "POL"]
[SourceTitle "playchess.com"]
[Source "ChessBase"]
[SourceQuality "1"]
[TimeControl "5400+30"]

1. e4 e5 {[%emt 0:00:00]} 2. Nf3 {[%emt 0:00:00]} Nc6 {[%emt 0:00:00]} 3. Bc4 {[%emt 0:00:09]} Bc5 {[%emt 0:00:00]} 4. c3 {[%emt 0:00:30]} Nf6 {[%emt 0:00:53]} 5. d4 {[%emt 0:00:55]} exd4 {[%emt 0:00:42]} 6. cxd4 {[%emt 0:00:15]} Bb4+ {[%emt 0:00:36]} 7. Nc3 {[%emt 0:00:32]} O-O {[%emt 0:00:29]} 8. Bg5 {[%emt 0:04:30]} Qe7 {[%emt 0:01:56]} 9. O-O {[%emt 0:06:06]} d6 {[%emt 0:00:46]} 10. Nd5 {[%emt 0:01:26]} Qd8 {[%emt 0:01:04]} 11. e5 {[%emt 0:01:29]} dxe5 {[%emt 0:01:47]} 12. dxe5 {[%emt 0:00:28]} b5 {[%emt 0:02:54]} 13. Bxb5 {[%emt 0:05:46]} Qxd5 {[%emt 0:00:24]} 14. Qxd5 {[%emt 0:00:21]} Nxd5 {[%emt 0:00:15]} 15. Bxc6 {[%emt 0:00:11]} Nb6 {[%emt 0:01:06]} 16. Bxa8 {[%emt 0:00:26]} Nxa8 {[%emt 0:00:07]} 17. Rad1 {[%emt 0:00:37]} Ba6 {[%emt 0:00:23]} 18. Nd4 {[%emt 0:02:39]} Bxf1 {[%emt 0:00:38]} 19. Kxf1 {[%emt 0:00:12]} f6 {[%emt 0:00:39]} 20. Nc6 {[%emt 0:02:36]} Bc5 {[%emt 0:00:55]} 21. exf6 {[%emt 0:02:03]} gxf6 {[%emt 0:00:15]} 22. Bh6 {[%emt 0:06:21]} Re8 {[%emt 0:00:42]} 23. Rd7 {[%emt 0:01:06]} f5 {[%emt 0:01:39]} 24. Bf4 {[%emt 0:13:51]} Nb6 {[%emt 0:02:46]} 25. Rd3 {[%emt 0:04:21]} Re6 {[%emt 0:00:33]} 26. Nxa7 {[%emt 0:04:41]} Bb4 {[%emt 0:00:48]} 27. Re3 {[%emt 0:01:46]} Rg6 {[%emt 0:01:47]} 28. Rg3 {[%emt 0:06:26]} Kf7 {[%emt 0:00:52]} 29. Rxg6 {[%emt 0:00:47]} hxg6 {[%emt 0:00:14]} 30. Bxc7 {[%emt 0:00:23]} Bc5 {[%emt 0:00:09]} 31. Bxb6 {[%emt 0:00:50]} Bxb6 {[%emt 0:00:11]} 32. Nc6 {[%emt 0:01:03]} Ke6 {[%emt 0:00:12]} 33. b4 {[%emt 0:02:14]} Kd5 {[%emt 0:00:05]} 34. b5 {[%emt 0:00:42]} Kc5 {[%emt 0:00:40]} 35. a4 {[%emt 0:00:33]} Bc7 {[%emt 0:01:47]} 36. Ke2 {[%emt 0:01:43]} Kd5 {[%emt 0:00:45]} 37. Kf3 {[%emt 0:02:49]} Kd6 {[%emt 0:01:21]} 38. g4 {[%emt 0:01:19]} 1-0

[Event "POL-chT 2nd League Juniors 2020"]
[Site "Sypniewo"]
[Date "2020.10.24"]
[Round "3.15"]
[White "Skrzypinski, Jan"]
[Black "Jendrowiak, Maciej"]
[Result "0-1"]
[ECO "B18"]
[WhiteElo "1418"]
[BlackElo "1382"]
[Annotator "NA"]
[PlyCount "110"]
[EventDate "2020.10.23"]
[EventType "team-tourn"]
[EventCountry "POL"]
[SourceTitle "playchess.com"]
[Source "ChessBase"]
[SourceQuality "1"]
[TimeControl "5400+30"]

1. e4 {[%emt 0:00:00]} c6 {[%emt 0:00:00]} 2. d4 {[%emt 0:01:50]} d5 {[%emt 0:01:05]} 3. Nc3 {[%emt 0:01:55]} dxe4 {[%emt 0:02:20]} 4. Nxe4 {[%emt 0:00:07]} Bf5 {[%emt 0:00:27]} 5. Nc3 {[%emt 0:04:12]} Nf6 {[%emt 0:02:59]} 6. Bc4 {[%emt 0:03:45]} Nbd7 {[%emt 0:01:20]} 7. Nge2 {[%emt 0:01:53]} e6 {[%emt 0:04:58]} 8. Ng3 {[%emt 0:01:08]} Bg6 {[%emt 0:01:31]} 9. O-O {[%emt 0:01:21]} Be7 {[%emt 0:01:40]} 10. Be3 {[%emt 0:00:51]} O-O {[%emt 0:00:46]} 11. Qd2 {[%emt 0:01:44]} Nd5 {[%emt 0:01:48]} 12. Bxd5 {[%emt 0:00:14]} cxd5 {[%emt 0:00:14]} 13. f4 {[%emt 0:00:06]} Nb6 {[%emt 0:01:29]} 14. Qf2 {[%emt 0:01:11]} Bh4 {[%emt 0:01:00]} 15. Rae1 {[%emt 0:00:52]} Nc4 {[%emt 0:00:51]} 16. Bc1 {[%emt 0:00:07]} Nd6 {[%emt 0:00:35]} 17. Qe3 {[%emt 0:09:15]} Bxc2 {[%emt 0:04:16]} 18. Re2 {[%emt 0:02:06]} Bg6 {[%emt 0:00:31]} 19. Qf3 {[%emt 0:01:53]} Bxg3 {[%emt 0:00:24]} 20. hxg3 {[%emt 0:00:10]} Be4 {[%emt 0:03:35]} 21. Qg4 {[%emt 0:00:59]} Bd3 {[%emt 0:00:20]} 22. Re5 {[%emt 0:00:28]} Bxf1 {[%emt 0:00:25]} 23. Kxf1 {[%emt 0:00:34]} Nf5 {[%emt 0:00:08]} 24. Qh3 {[%emt 0:03:51]} g6 {[%emt 0:04:21]} 25. g4 {[%emt 0:01:53]} Nxd4 {[%emt 0:02:11]} 26. Qd3 {[%emt 0:01:58]} Nc6 {[%emt 0:00:33]} 27. Rg5 {[%emt 0:00:07]} Qe7 {[%emt 0:01:06]} 28. Be3 {[%emt 0:04:21]} f6 {[%emt 0:01:20]} 29. Bc5 {[%emt 0:00:46]} Qf7 {[%emt 0:01:09]} 30. Bxf8 {[%emt 0:01:07]} Rxf8 {[%emt 0:00:10]} 31. Rxd5 {[%emt 0:01:36]} exd5 {[%emt 0:00:07]} 32. Qxd5 {[%emt 0:00:13]} Qxd5 {[%emt 0:00:08]} 33. Nxd5 {[%emt 0:00:03]} Kf7 {[%emt 0:00:12]} 34. Kf2 {[%emt 0:00:09]} Rd8 {[%emt 0:00:13]} 35. Ne3 {[%emt 0:00:15]} Rd2+ {[%emt 0:00:07]} 36. Kf3 {[%emt 0:00:04]} Rxb2 {[%emt 0:00:06]} 37. Nc4 {[%emt 0:00:03]} Rxa2 {[%emt 0:00:12]} 38. Nd6+ {[%emt 0:00:04]} Ke7 {[%emt 0:00:15]} 39. Nxb7 {[%emt 0:00:06]} a5 {[%emt 0:00:12]} 40. g3 {[%emt 0:00:05]} a4 {[%emt 0:00:09]} 41. Nc5 {[%emt 0:00:06]} a3 {[%emt 0:00:09]} 42. Nb3 {[%emt 0:00:09]} Rb2 {[%emt 0:00:05]} 43. Nc1 {[%emt 0:00:04]} a2 {[%emt 0:00:06]} 44. Nxa2 {[%emt 0:00:03]} Rxa2 {[%emt 0:00:04]} 45. g5 {[%emt 0:00:05]} fxg5 {[%emt 0:00:04]} 46. fxg5 {[%emt 0:00:04]} Ra3+ {[%emt 0:00:10]} 47. Kg4 {[%emt 0:00:06]} Ke6 {[%emt 0:00:14]} 48. Kh4 {[%emt 0:00:03]} Ra4+ {[%emt 0:00:34]} 49. g4 {[%emt 0:00:04]} Ke5 {[%emt 0:00:05]} 50. Kh3 {[%emt 0:00:04]} Kf4 {[%emt 0:00:09]} 51. Kh4 {[%emt 0:00:02]} Ra1 {[%emt 0:00:07]} 52. Kh3 {[%emt 0:00:03]} Rh1+ {[%emt 0:00:17]} 53. Kg2 {[%emt 0:00:03]} Rh4 {[%emt 0:00:29]} 54. Kg1 {[%emt 0:00:03]} Kf3 {[%emt 0:00:08]} 55. Kf1 {[%emt 0:00:04]} Rh1# {[%emt 0:00:04]} 0-1

[Event "POL-chT 2nd League Juniors 2020"]
[Site "Sypniewo"]
[Date "2020.10.24"]
[Round "3.16"]
[White "Rzepka, Marcin"]
[Black "Kaczmarek, Jan"]
[Result "1-0"]
[ECO "A04"]
[WhiteElo "1294"]
[BlackElo "1229"]
[Annotator "NA"]
[PlyCount "59"]
[EventDate "2020.10.23"]
[EventType "team-tourn"]
[EventCountry "POL"]
[SourceTitle "playchess.com"]
[Source "ChessBase"]
[SourceQuality "1"]
[TimeControl "5400+30"]

1. Nf3 {[%emt 0:00:00]} c5 {[%emt 0:00:00]} 2. g3 {[%emt 0:00:00]} Nc6 {[%emt 0:00:00]} 3. Bg2 {[%emt 0:00:24]} g6 {[%emt 0:00:53]} 4. O-O {[%emt 0:00:35]} d5 {[%emt 0:00:37]} 5. d3 {[%emt 0:00:48]} Bg7 {[%emt 0:01:09]} 6. Nbd2 {[%emt 0:01:27]} Nf6 {[%emt 0:02:16]} 7. e4 {[%emt 0:03:22]} dxe4 {[%emt 0:01:06]} 8. dxe4 {[%emt 0:00:36]} O-O {[%emt 0:02:05]} 9. a3 {[%emt 0:04:31]} Nd7 {[%emt 0:02:46]} 10. Qe2 {[%emt 0:09:11]} Nd4 {[%emt 0:01:02]} 11. Nxd4 {[%emt 0:00:27]} cxd4 {[%emt 0:00:10]} 12. Nb3 {[%emt 0:09:03]} Qb6 {[%emt 0:04:45]} 13. Rd1 {[%emt 0:05:47]} e5 {[%emt 0:00:20]} 14. Kh1 {[%emt 0:03:36]} Nc5 {[%emt 0:00:43]} 15. Nxc5 {[%emt 0:09:07]} Qxc5 {[%emt 0:00:02]} 16. Rb1 {[%emt 0:00:33]} Be6 {[%emt 0:02:51]} 17. b4 {[%emt 0:00:51]} Bc4 {[%emt 0:02:08]} 18. Qd2 {[%emt 0:04:01]} Qb5 19. c3 {[%emt 0:02:09]} Rfd8 {[%emt 0:05:31]} 20. cxd4 {[%emt 0:04:55]} Rxd4 {[%emt 0:00:09]} 21. Qe1 {[%emt 0:00:13]} Rad8 {[%emt 0:03:02]} 22. Be3 {[%emt 0:01:12]} Rxd1 {[%emt 0:01:04]} 23. Rxd1 {[%emt 0:00:13]} Re8 {[%emt 0:05:04]} 24. Bh3 {[%emt 0:05:31]} Be6 {[%emt 0:03:00]} 25. Bxe6 {[%emt 0:00:47]} Rxe6 {[%emt 0:00:04]} 26. Rd8+ {[%emt 0:00:05]} Re8 {[%emt 0:00:02]} 27. Qd1 {[%emt 0:01:32]} Rxd8 {[%emt 0:01:08]} 28. Qxd8+ {[%emt 0:00:07]} Bf8 {[%emt 0:00:02]} 29. Kg1 {[%emt 0:00:44]} Qc6 {[%emt 0:03:19]} 30. Bc5 {[%emt 0:01:21]} 1-0